[Event "Chessable Masters - Torneo preliminare"]
[White "Bluebaum, Matthias"]
[Black "Andreikin, Dmitry"]
[WhiteFideId "24651516"]
[BlackFideId "4158814"]
[WhiteElo "2601"]
[BlackElo "2628"]
[Result "1/2-1/2"]
[Round "7"]
[TimeControl "600+2"]
[Date "2023.03.13"]
[WhiteClock "0:10:02"]
[BlackClock "0:10:14"]

1. d4 {[%clk 0:10:01]}  d5 {[%clk 0:10:00]} 2. c4 {[%clk 0:10:03]}  e6 {[%clk 0:10:01]} 3. Nc3 {[%clk 0:10:04]}  Nf6 {[%clk 0:10:02]} 4. cxd5 {[%clk 0:10:04]}  exd5 {[%clk 0:10:02]} 5. Bg5 {[%clk 0:10:05]}  c6 {[%clk 0:10:03]} 6. e3 {[%clk 0:10:06]}  Bf5 {[%clk 0:10:04]} 7. Qf3 {[%clk 0:10:05]}  h6 {[%clk 0:10:05]} 8. Bh4 {[%clk 0:10:02]}  Bh7 {[%clk 0:10:06]} 9. Bxf6 {[%clk 0:10:02]}  Qxf6 {[%clk 0:10:08]} 10. Qxf6 {[%clk 0:10:03]}  gxf6 {[%clk 0:10:10]} 11. Kd2 {[%clk 0:09:59]}  Nd7 {[%clk 0:10:10]} 12. Bd3 {[%clk 0:10:00]}  Bxd3 {[%clk 0:10:11]} 13. Kxd3 {[%clk 0:10:02]}  Rg8 {[%clk 0:10:13]} 14. g3 {[%clk 0:10:02]}  f5 {[%clk 0:10:14]} 1/2-1/2


[Site "Internet"]

[Event "Chessable Masters - Torneo preliminare"]
[White "Mamedyarov, Shakhriyar"]
[Black "Tabatabaei, M. Amin"]
[WhiteFideId "13401319"]
[BlackFideId "12521213"]
[WhiteElo "2703"]
[BlackElo "2558"]
[Result "0-1"]
[Round "7"]
[TimeControl "600+2"]
[Date "2023.03.13"]
[WhiteClock "0:00:57"]
[BlackClock "0:02:47"]

1. d4 {[%clk 0:10:01]}  Nf6 {[%clk 0:09:59]} 2. c4 {[%clk 0:09:09]}  e6 {[%clk 0:09:59]} 3. Nc3 {[%clk 0:09:10]}  d5 {[%clk 0:09:53]} 4. Nf3 {[%clk 0:09:09]}  dxc4 {[%clk 0:09:53]} 5. e4 {[%clk 0:09:09]}  b5 {[%clk 0:09:54]} 6. e5 {[%clk 0:09:06]}  Nd5 {[%clk 0:09:55]} 7. Nxb5 {[%clk 0:09:07]}  Nb6 {[%clk 0:09:57]} 8. Be2 {[%clk 0:09:04]}  Be7 {[%clk 0:09:56]} 9. O-O {[%clk 0:09:00]}  Nc6 {[%clk 0:09:56]} 10. Qd2 {[%clk 0:09:00]}  O-O {[%clk 0:09:54]} 11. Rd1 {[%clk 0:08:58]}  Rb8 {[%clk 0:09:38]} 12. Nc3 {[%clk 0:08:18]}  Bb7 {[%clk 0:09:39]} 13. Qf4 {[%clk 0:08:17]}  Nb4 {[%clk 0:09:40]} 14. Qg4 {[%clk 0:08:16]}  Kh8 {[%clk 0:09:41]} 15. Ne4 {[%clk 0:08:05]}  f5 {[%clk 0:07:45]} 16. exf6 {[%clk 0:08:04]}  gxf6 {[%clk 0:07:47]} 17. Nc5 {[%clk 0:07:46]}  Rg8 {[%clk 0:07:44]} 18. Qxe6 {[%clk 0:06:52]}  Bc8 {[%clk 0:07:45]} 19. Qe4 {[%clk 0:05:25]}  Rg4 {[%clk 0:07:41]} 20. Qb1 {[%clk 0:05:11]}  Qd5 {[%clk 0:07:38]} 21. Be3 {[%clk 0:04:51]}  Bf5 {[%clk 0:07:23]} 22. Qc1 {[%clk 0:04:49]}  Nc2 {[%clk 0:06:45]} 23. g3 {[%clk 0:04:12]}  Rbg8 {[%clk 0:04:57]} 24. Ne1 {[%clk 0:03:40]}  Nxe1 {[%clk 0:02:57]} 25. Rxe1 {[%clk 0:03:21]}  Bd6 {[%clk 0:02:58]} 26. Bxg4 {[%clk 0:03:03]}  Bxg4 {[%clk 0:03:00]} 27. Qc2 {[%clk 0:02:13]}  Bf3 {[%clk 0:02:59]} 28. Bd2 {[%clk 0:01:33]}  Qh5 {[%clk 0:02:56]} 29. Qc3 {[%clk 0:00:56]}  Bxg3 {[%clk 0:02:46]} 30. fxg3 {[%clk 0:00:57]}  Rxg3+ {[%clk 0:02:47]} 0-1


[Site "Internet"]

[Event "Chessable Masters - Torneo preliminare"]
[White "Kravtsiv, Martyn"]
[Black "Salem, A.R. Saleh"]
[WhiteFideId "14113147"]
[BlackFideId "9301348"]
[WhiteElo "2675"]
[BlackElo "2654"]
[Result "1/2-1/2"]
[Round "7"]
[TimeControl "600+2"]
[Date "2023.03.13"]
[WhiteClock "0:00:14"]
[BlackClock "0:00:20"]

1. e4 {[%clk 0:09:55]}  e5 {[%clk 0:09:54]} 2. Nf3 {[%clk 0:09:55]}  Nc6 {[%clk 0:09:56]} 3. Nc3 {[%clk 0:09:55]}  Nf6 {[%clk 0:09:56]} 4. a4 {[%clk 0:09:56]}  Be7 {[%clk 0:09:01]} 5. d4 {[%clk 0:09:52]}  exd4 {[%clk 0:09:02]} 6. Nxd4 {[%clk 0:09:51]}  Bb4 {[%clk 0:08:54]} 7. Nxc6 {[%clk 0:09:31]}  bxc6 {[%clk 0:08:56]} 8. Bd3 {[%clk 0:09:31]}  O-O {[%clk 0:08:54]} 9. O-O {[%clk 0:09:30]}  d5 {[%clk 0:08:56]} 10. Bd2 {[%clk 0:08:49]}  Rb8 {[%clk 0:08:53]} 11. Re1 {[%clk 0:08:47]}  dxe4 {[%clk 0:07:38]} 12. Nxe4 {[%clk 0:08:41]}  Bxd2 {[%clk 0:06:34]} 13. Qxd2 {[%clk 0:07:45]}  Nxe4 {[%clk 0:06:33]} 14. Rxe4 {[%clk 0:07:46]}  Bf5 {[%clk 0:06:30]} 15. Re3 {[%clk 0:07:33]}  Bxd3 {[%clk 0:05:30]} 16. Rxd3 {[%clk 0:07:31]}  Qf6 {[%clk 0:05:30]} 17. c3 {[%clk 0:07:26]}  Rb3 {[%clk 0:04:36]} 18. Rd1 {[%clk 0:07:18]}  h6 {[%clk 0:04:32]} 19. h3 {[%clk 0:07:07]}  c5 {[%clk 0:03:08]} 20. Rd8 {[%clk 0:06:35]}  Rb8 {[%clk 0:02:43]} 21. Rxf8+ {[%clk 0:06:29]}  Kxf8 {[%clk 0:02:43]} 22. Qd7 {[%clk 0:05:31]}  Qe7 {[%clk 0:02:43]} 23. a5 {[%clk 0:04:51]}  g6 {[%clk 0:02:27]} 24. Rd2 {[%clk 0:03:39]}  a6 {[%clk 0:02:28]} 25. Qd3 {[%clk 0:02:00]}  Rb5 {[%clk 0:02:28]} 26. Re2 {[%clk 0:02:00]}  Qd6 {[%clk 0:02:15]} 27. Qe3 {[%clk 0:02:00]}  Kg7 {[%clk 0:02:12]} 28. Rd2 {[%clk 0:01:58]}  Qf6 {[%clk 0:02:01]} 29. Rd5 {[%clk 0:00:54]}  Rxb2 {[%clk 0:01:46]} 30. Rxc5 {[%clk 0:00:54]}  Rb1+ {[%clk 0:01:10]} 31. Kh2 {[%clk 0:00:54]}  Rf1 {[%clk 0:01:00]} 32. f3 {[%clk 0:00:36]}  Ra1 {[%clk 0:00:42]} 33. Qe5 {[%clk 0:00:32]}  Qxe5+ {[%clk 0:00:27]} 34. Rxe5 {[%clk 0:00:34]}  g5 {[%clk 0:00:21]} 35. Rc5 {[%clk 0:00:35]}  Ra2 {[%clk 0:00:20]} 36. Kg3 {[%clk 0:00:34]}  Ra4 {[%clk 0:00:20]} 37. c4 {[%clk 0:00:30]}  Kg6 {[%clk 0:00:19]} 38. Rc6+ {[%clk 0:00:23]}  f6 {[%clk 0:00:20]} 39. Rxa6 {[%clk 0:00:18]}  Rxc4 {[%clk 0:00:21]} 40. Ra8 {[%clk 0:00:19]}  Ra4 {[%clk 0:00:23]} 41. a6 {[%clk 0:00:16]}  Ra2 {[%clk 0:00:22]} 42. Rc8 {[%clk 0:00:14]}  Rxa6 {[%clk 0:00:20]} 1/2-1/2


[Site "Internet"]

[Event "Chessable Masters - Torneo preliminare"]
[White "Alekseenko, Kirill"]
[Black "Sadhwani, Raunak"]
[WhiteFideId "4135539"]
[BlackFideId "35093487"]
[WhiteElo "2632"]
[BlackElo "2550"]
[Result "0-1"]
[Round "7"]
[TimeControl "600+2"]
[Date "2023.03.13"]
[WhiteClock "0:01:19"]
[BlackClock "0:00:58"]

1. e4 {[%clk 0:10:00]}  e5 {[%clk 0:09:56]} 2. Nf3 {[%clk 0:10:00]}  Nc6 {[%clk 0:09:58]} 3. Bb5 {[%clk 0:10:01]}  Nf6 {[%clk 0:09:59]} 4. d3 {[%clk 0:10:01]}  Bc5 {[%clk 0:10:00]} 5. Bxc6 {[%clk 0:10:02]}  dxc6 {[%clk 0:10:02]} 6. Nbd2 {[%clk 0:09:57]}  Be6 {[%clk 0:10:02]} 7. O-O {[%clk 0:09:45]}  Bd6 {[%clk 0:09:26]} 8. b3 {[%clk 0:09:32]}  Qe7 {[%clk 0:09:02]} 9. Nc4 {[%clk 0:09:15]}  Bxc4 {[%clk 0:08:25]} 10. bxc4 {[%clk 0:09:17]}  Nd7 {[%clk 0:08:26]} 11. Be3 {[%clk 0:09:07]}  O-O {[%clk 0:08:06]} 12. Kh1 {[%clk 0:08:59]}  Nc5 {[%clk 0:08:05]} 13. Rb1 {[%clk 0:08:19]}  b6 {[%clk 0:07:57]} 14. Ng1 {[%clk 0:08:16]}  Ne6 {[%clk 0:07:53]} 15. Qg4 {[%clk 0:08:13]}  Bc5 {[%clk 0:06:51]} 16. Nf3 {[%clk 0:08:11]}  f6 {[%clk 0:06:14]} 17. Bxc5 {[%clk 0:07:28]}  Nxc5 {[%clk 0:06:14]} 18. Nh4 {[%clk 0:07:30]}  Qd7 {[%clk 0:05:45]} 19. Nf5 {[%clk 0:06:29]}  Kh8 {[%clk 0:05:37]} 20. f4 {[%clk 0:06:19]}  g6 {[%clk 0:05:19]} 21. Ne3 {[%clk 0:06:18]}  Qxg4 {[%clk 0:05:19]} 22. Nxg4 {[%clk 0:06:19]}  exf4 {[%clk 0:05:21]} 23. Rxf4 {[%clk 0:06:18]}  Kg7 {[%clk 0:05:22]} 24. Rbf1 {[%clk 0:06:06]}  Nd7 {[%clk 0:05:18]} 25. d4 {[%clk 0:05:55]}  Rae8 {[%clk 0:04:31]} 26. h4 {[%clk 0:05:53]}  h5 {[%clk 0:03:51]} 27. Ne3 {[%clk 0:05:53]}  Re7 {[%clk 0:03:53]} 28. g4 {[%clk 0:04:13]}  Rfe8 {[%clk 0:03:53]} 29. gxh5 {[%clk 0:04:06]}  Rxe4 {[%clk 0:03:52]} 30. Ng4 {[%clk 0:03:35]}  Rxf4 {[%clk 0:03:20]} 31. h6+ {[%clk 0:03:26]}  Kh7 {[%clk 0:03:21]} 32. Rxf4 {[%clk 0:03:28]}  f5 {[%clk 0:03:22]} 33. Kg2 {[%clk 0:02:53]}  Re7 {[%clk 0:02:45]} 34. Nf2 {[%clk 0:02:12]}  Kxh6 {[%clk 0:02:44]} 35. Rf3 {[%clk 0:02:14]}  Re2 {[%clk 0:02:32]} 36. Ra3 {[%clk 0:01:49]}  Nf6 {[%clk 0:01:38]} 37. Kf3 {[%clk 0:01:40]}  Rxc2 {[%clk 0:01:36]} 38. Rxa7 {[%clk 0:01:41]}  Rxc4 {[%clk 0:01:37]} 39. Rxc7 {[%clk 0:01:38]}  Nd5 {[%clk 0:01:39]} 40. Rc8 {[%clk 0:01:32]}  Rxd4 {[%clk 0:01:29]} 41. Rxc6 {[%clk 0:01:31]}  Rxh4 {[%clk 0:01:30]} 42. Rd6 {[%clk 0:01:28]}  Rd4 {[%clk 0:01:18]} 43. a4 {[%clk 0:01:28]}  Kh5 {[%clk 0:01:03]} 44. Nh3 {[%clk 0:01:20]}  Rd3+ {[%clk 0:01:01]} 45. Ke2 {[%clk 0:01:18]}  Rxh3 {[%clk 0:01:00]} 46. Rxd5 {[%clk 0:01:19]}  Rh4 {[%clk 0:00:58]} 0-1


[Site "Internet"]

[Event "Chessable Masters - Torneo preliminare"]
[White "Kosteniuk, Alexandra"]
[Black "Martinez Alcantara, Jose Eduardo"]
[WhiteFideId "4128125"]
[BlackFideId "3805662"]
[WhiteElo "2524"]
[BlackElo "2643"]
[Result "1/2-1/2"]
[Round "7"]
[TimeControl "600+2"]
[Date "2023.03.13"]
[WhiteClock "0:09:34"]
[BlackClock "0:09:39"]

1. e4 {[%clk 0:10:01]}  e5 {[%clk 0:09:57]} 2. Nf3 {[%clk 0:10:02]}  Nf6 {[%clk 0:09:57]} 3. Nxe5 {[%clk 0:10:02]}  d6 {[%clk 0:09:58]} 4. Nf3 {[%clk 0:10:02]}  Nxe4 {[%clk 0:09:59]} 5. d3 {[%clk 0:10:04]}  Nf6 {[%clk 0:10:00]} 6. d4 {[%clk 0:10:05]}  Be7 {[%clk 0:10:01]} 7. Bd3 {[%clk 0:10:05]}  O-O {[%clk 0:10:03]} 8. O-O {[%clk 0:10:07]}  Nbd7 {[%clk 0:10:03]} 9. Nbd2 {[%clk 0:10:05]}  b6 {[%clk 0:10:04]} 10. Ne4 {[%clk 0:09:56]}  Bb7 {[%clk 0:10:04]} 11. Re1 {[%clk 0:09:46]}  Nxe4 {[%clk 0:10:04]} 12. Bxe4 {[%clk 0:09:47]}  Bxe4 {[%clk 0:10:06]} 13. Rxe4 {[%clk 0:09:48]}  Nf6 {[%clk 0:10:08]} 14. Re2 {[%clk 0:09:42]}  c6 {[%clk 0:09:52]} 15. Qd3 {[%clk 0:09:34]}  Qd7 {[%clk 0:09:39]} 1/2-1/2


[Site "Internet"]

[Event "Chessable Masters - Torneo preliminare"]
[White "Fier, Alexandr"]
[Black "Giri, Anish"]
[WhiteFideId "2107139"]
[BlackFideId "24116068"]
[WhiteElo "2504"]
[BlackElo "2714"]
[Result "1/2-1/2"]
[Round "7"]
[TimeControl "600+2"]
[Date "2023.03.13"]
[WhiteClock "0:08:39"]
[BlackClock "0:05:47"]

1. e4 {[%clk 0:10:01]}  c5 {[%clk 0:09:54]} 2. Nf3 {[%clk 0:10:03]}  Nc6 {[%clk 0:09:53]} 3. d4 {[%clk 0:10:03]}  cxd4 {[%clk 0:09:53]} 4. Nxd4 {[%clk 0:10:05]}  e5 {[%clk 0:09:39]} 5. Nb5 {[%clk 0:10:03]}  d6 {[%clk 0:09:40]} 6. c4 {[%clk 0:10:02]}  g6 {[%clk 0:09:09]} 7. Bd3 {[%clk 0:10:02]}  a6 {[%clk 0:08:55]} 8. N5c3 {[%clk 0:10:02]}  Bg7 {[%clk 0:08:56]} 9. Nd5 {[%clk 0:10:01]}  Nf6 {[%clk 0:08:43]} 10. Bg5 {[%clk 0:09:54]}  h6 {[%clk 0:08:44]} 11. Be3 {[%clk 0:09:43]}  Nxd5 {[%clk 0:08:41]} 12. cxd5 {[%clk 0:09:42]}  Ne7 {[%clk 0:08:33]} 13. O-O {[%clk 0:09:38]}  O-O {[%clk 0:08:32]} 14. Nd2 {[%clk 0:09:38]}  f5 {[%clk 0:08:28]} 15. f3 {[%clk 0:09:40]}  b5 {[%clk 0:08:19]} 16. a4 {[%clk 0:09:39]}  Bd7 {[%clk 0:08:20]} 17. axb5 {[%clk 0:09:30]}  Bxb5 {[%clk 0:08:06]} 18. Bxb5 {[%clk 0:09:27]}  axb5 {[%clk 0:08:07]} 19. Qb3 {[%clk 0:09:27]}  Qd7 {[%clk 0:08:08]} 20. Ra3 {[%clk 0:08:40]}  Rxa3 {[%clk 0:07:59]} 21. bxa3 {[%clk 0:08:40]}  Kh7 {[%clk 0:07:45]} 22. Rb1 {[%clk 0:08:39]}  Qc7 {[%clk 0:05:47]} 1/2-1/2


[Site "Internet"]

[Event "Chessable Masters - Torneo preliminare"]
[White "Chirila, Ioan-Cristian"]
[Black "Yu, Yangyi"]
[WhiteFideId "1211668"]
[BlackFideId "8603820"]
[WhiteElo "2508"]
[BlackElo "2734"]
[Result "0-1"]
[Round "7"]
[TimeControl "600+2"]
[Date "2023.03.13"]
[WhiteClock "0:00:06"]
[BlackClock "0:02:14"]

1. d4 {[%clk 0:10:00]}  Nf6 {[%clk 0:09:59]} 2. c4 {[%clk 0:09:58]}  e6 {[%clk 0:09:59]} 3. Nf3 {[%clk 0:09:58]}  h6 {[%clk 0:09:59]} 4. g3 {[%clk 0:09:13]}  Bb4+ {[%clk 0:09:58]} 5. Nbd2 {[%clk 0:08:47]}  d5 {[%clk 0:09:54]} 6. Bg2 {[%clk 0:08:44]}  O-O {[%clk 0:09:54]} 7. O-O {[%clk 0:08:42]}  a5 {[%clk 0:09:53]} 8. Qc2 {[%clk 0:08:17]}  Nc6 {[%clk 0:09:08]} 9. Rd1 {[%clk 0:07:56]}  a4 {[%clk 0:08:28]} 10. a3 {[%clk 0:07:24]}  Be7 {[%clk 0:08:28]} 11. e4 {[%clk 0:07:20]}  Bd7 {[%clk 0:08:12]} 12. e5 {[%clk 0:07:05]}  Nh7 {[%clk 0:08:13]} 13. h4 {[%clk 0:06:33]}  Na5 {[%clk 0:08:08]} 14. cxd5 {[%clk 0:06:07]}  exd5 {[%clk 0:08:09]} 15. Nf1 {[%clk 0:05:23]}  Nb3 {[%clk 0:07:59]} 16. Rb1 {[%clk 0:05:25]}  Be6 {[%clk 0:07:43]} 17. Ne3 {[%clk 0:04:25]}  Qd7 {[%clk 0:07:42]} 18. Bd2 {[%clk 0:04:24]}  c5 {[%clk 0:07:13]} 19. Bc3 {[%clk 0:03:14]}  Rfc8 {[%clk 0:05:34]} 20. Qe2 {[%clk 0:02:10]}  Nf8 {[%clk 0:05:02]} 21. dxc5 {[%clk 0:02:03]}  Bxc5 {[%clk 0:05:03]} 22. Nd4 {[%clk 0:01:55]}  Bxd4 {[%clk 0:04:56]} 23. Bxd4 {[%clk 0:01:56]}  Ra5 {[%clk 0:04:55]} 24. Bc3 {[%clk 0:01:47]}  Rb5 {[%clk 0:04:49]} 25. Bf1 {[%clk 0:00:35]}  Rb6 {[%clk 0:04:47]} 26. Nc2 {[%clk 0:00:29]}  Bg4 {[%clk 0:04:39]} 27. f3 {[%clk 0:00:25]}  Bf5 {[%clk 0:04:41]} 28. g4 {[%clk 0:00:21]}  Bh7 {[%clk 0:03:48]} 29. Qf2 {[%clk 0:00:20]}  Re6 {[%clk 0:03:31]} 30. Bd3 {[%clk 0:00:19]}  Bxd3 {[%clk 0:03:15]} 31. Rxd3 {[%clk 0:00:21]}  h5 {[%clk 0:03:17]} 32. gxh5 {[%clk 0:00:15]}  Rh6 {[%clk 0:02:59]} 33. Ne3 {[%clk 0:00:15]}  d4 {[%clk 0:02:53]} 34. Ng4 {[%clk 0:00:16]}  Rxh5 {[%clk 0:02:54]} 35. Bb4 {[%clk 0:00:07]}  Ng6 {[%clk 0:02:52]} 36. Qg3 {[%clk 0:00:05]}  Nc1 {[%clk 0:02:43]} 37. Rd2 {[%clk 0:00:03]}  Qf5 {[%clk 0:02:41]} 38. Kg2 {[%clk 0:00:04]}  Qxb1 {[%clk 0:02:40]} 39. e6 {[%clk 0:00:05]}  fxe6 {[%clk 0:02:28]} 40. Rxd4 {[%clk 0:00:06]}  Ne2 {[%clk 0:02:14]} 0-1


[Site "Internet"]

[Event "Chessable Masters - Torneo preliminare"]
[White "Durarbayli, Vasif"]
[Black "Nguyen, Ngoc Truong Son"]
[WhiteFideId "13402935"]
[BlackFideId "12401110"]
[WhiteElo "2531"]
[BlackElo "2585"]
[Result "1/2-1/2"]
[Round "7"]
[TimeControl "600+2"]
[Date "2023.03.13"]
[WhiteClock "0:00:10"]
[BlackClock "0:00:23"]

1. e4 {[%clk 0:10:01]}  c5 {[%clk 0:08:53]} 2. Nf3 {[%clk 0:10:01]}  Nc6 {[%clk 0:08:51]} 3. Bb5 {[%clk 0:10:02]}  g6 {[%clk 0:08:49]} 4. O-O {[%clk 0:10:02]}  Bg7 {[%clk 0:08:50]} 5. c3 {[%clk 0:10:03]}  Nf6 {[%clk 0:08:44]} 6. Re1 {[%clk 0:10:04]}  O-O {[%clk 0:08:40]} 7. d4 {[%clk 0:10:05]}  cxd4 {[%clk 0:07:32]} 8. cxd4 {[%clk 0:10:07]}  d5 {[%clk 0:07:33]} 9. e5 {[%clk 0:10:06]}  Ne4 {[%clk 0:07:30]} 10. Be3 {[%clk 0:10:07]}  Qb6 {[%clk 0:07:23]} 11. Bxc6 {[%clk 0:10:08]}  bxc6 {[%clk 0:07:16]} 12. Qc1 {[%clk 0:10:08]}  f6 {[%clk 0:07:08]} 13. Nc3 {[%clk 0:10:01]}  Bf5 {[%clk 0:06:57]} 14. exf6 {[%clk 0:07:47]}  exf6 {[%clk 0:06:21]} 15. Nd2 {[%clk 0:07:08]}  Nxc3 {[%clk 0:05:54]} 16. Qxc3 {[%clk 0:07:07]}  Rfe8 {[%clk 0:05:37]} 17. Rac1 {[%clk 0:06:15]}  Bd7 {[%clk 0:05:28]} 18. Nb3 {[%clk 0:06:12]}  Bf8 {[%clk 0:05:23]} 19. Nc5 {[%clk 0:06:01]}  Bf5 {[%clk 0:05:01]} 20. b3 {[%clk 0:04:33]}  Kf7 {[%clk 0:04:48]} 21. Na4 {[%clk 0:03:59]}  Bb4 {[%clk 0:03:30]} 22. Nxb6 {[%clk 0:03:46]}  Bxc3 {[%clk 0:03:29]} 23. Rxc3 {[%clk 0:03:19]}  axb6 {[%clk 0:03:29]} 24. Rxc6 {[%clk 0:03:21]}  Re6 {[%clk 0:02:49]} 25. Rc7+ {[%clk 0:03:09]}  Re7 {[%clk 0:02:49]} 26. Rxe7+ {[%clk 0:01:57]}  Kxe7 {[%clk 0:02:51]} 27. Re2 {[%clk 0:01:56]}  Rc8 {[%clk 0:02:17]} 28. Bf4+ {[%clk 0:00:25]}  Kd7 {[%clk 0:02:15]} 29. f3 {[%clk 0:00:26]}  Rc2 {[%clk 0:02:15]} 30. Kf2 {[%clk 0:00:27]}  Rxe2+ {[%clk 0:02:11]} 31. Kxe2 {[%clk 0:00:29]}  h5 {[%clk 0:00:49]} 32. h4 {[%clk 0:00:26]}  Bb1 {[%clk 0:00:42]} 33. Kd2 {[%clk 0:00:24]}  Bf5 {[%clk 0:00:30]} 34. Kc3 {[%clk 0:00:22]}  Be6 {[%clk 0:00:21]} 35. a4 {[%clk 0:00:20]}  Kc6 {[%clk 0:00:17]} 36. Bh6 {[%clk 0:00:15]}  Bc8 {[%clk 0:00:10]} 37. Bg7 {[%clk 0:00:10]}  f5 {[%clk 0:00:11]} 38. b4 {[%clk 0:00:05]}  b5 {[%clk 0:00:11]} 39. a5 {[%clk 0:00:07]}  Kd7 {[%clk 0:00:12]} 40. Kd2 {[%clk 0:00:07]}  Ke6 {[%clk 0:00:13]} 41. Ke3 {[%clk 0:00:09]}  Bb7 {[%clk 0:00:12]} 42. Kf4 {[%clk 0:00:10]}  Bc8 {[%clk 0:00:13]} 43. Kg5 {[%clk 0:00:10]}  Kf7 {[%clk 0:00:14]} 44. Be5 {[%clk 0:00:12]}  Bb7 {[%clk 0:00:15]} 45. Bf4 {[%clk 0:00:08]}  Bc8 {[%clk 0:00:16]} 46. Kh6 {[%clk 0:00:09]}  Bb7 {[%clk 0:00:16]} 47. Be5 {[%clk 0:00:10]}  Bc8 {[%clk 0:00:17]} 48. Kg5 {[%clk 0:00:11]}  Bb7 {[%clk 0:00:18]} 49. g3 {[%clk 0:00:05]}  Bc8 {[%clk 0:00:18]} 50. Kf4 {[%clk 0:00:06]}  Ke6 {[%clk 0:00:18]} 51. Bg7 {[%clk 0:00:07]}  Bb7 {[%clk 0:00:19]} 52. Bh6 {[%clk 0:00:08]}  Bc8 {[%clk 0:00:19]} 53. Bg5 {[%clk 0:00:10]}  Bb7 {[%clk 0:00:20]} 54. Bd8 {[%clk 0:00:12]}  Bc8 {[%clk 0:00:22]} 55. Bb6 {[%clk 0:00:06]}  Bb7 {[%clk 0:00:23]} 56. Bc7 {[%clk 0:00:07]}  Bc8 {[%clk 0:00:24]} 57. Be5 {[%clk 0:00:09]}  Bb7 {[%clk 0:00:25]} 58. Kg5 {[%clk 0:00:10]}  Kf7 {[%clk 0:00:26]} 59. Bf4 {[%clk 0:00:12]}  Bc8 {[%clk 0:00:26]} 60. Be3 {[%clk 0:00:14]}  Bb7 {[%clk 0:00:28]} 61. Bf2 {[%clk 0:00:15]}  Bc8 {[%clk 0:00:29]} 62. Be1 {[%clk 0:00:15]}  Bb7 {[%clk 0:00:30]} 63. g4 {[%clk 0:00:09]}  fxg4 {[%clk 0:00:30]} 64. f4 {[%clk 0:00:04]}  Bc8 {[%clk 0:00:29]} 65. Bg3 {[%clk 0:00:05]}  Kg7 {[%clk 0:00:26]} 66. Be1 {[%clk 0:00:05]}  Kf7 {[%clk 0:00:26]} 67. Bf2 {[%clk 0:00:05]}  Kg7 {[%clk 0:00:24]} 68. Bg3 {[%clk 0:00:05]}  Kf7 {[%clk 0:00:25]} 69. f5 {[%clk 0:00:03]}  Bxf5 {[%clk 0:00:17]} 70. a6 {[%clk 0:00:04]}  Bc8 {[%clk 0:00:17]} 71. a7 {[%clk 0:00:06]}  Bb7 {[%clk 0:00:19]} 72. Be5 {[%clk 0:00:06]}  Ba8 {[%clk 0:00:20]} 73. Bg3 {[%clk 0:00:07]}  Bb7 {[%clk 0:00:21]} 74. Be5 {[%clk 0:00:08]}  Ba8 {[%clk 0:00:22]} 75. Bg3 {[%clk 0:00:10]}  Bb7 {[%clk 0:00:23]} 1/2-1/2


[Site "Internet"]

[Event "Chessable Masters - Torneo preliminare"]
[White "Meier, Georg"]
[Black "Bok, Benjamin"]
[WhiteFideId "4675789"]
[BlackFideId "1017063"]
[WhiteElo "2624"]
[BlackElo "2608"]
[Result "1-0"]
[Round "7"]
[TimeControl "600+2"]
[Date "2023.03.13"]
[WhiteClock "0:00:31"]
[BlackClock "0:00:04"]

1. Nf3 {[%clk 0:10:01]}  d5 {[%clk 0:09:46]} 2. g3 {[%clk 0:10:03]}  g6 {[%clk 0:09:46]} 3. d4 {[%clk 0:10:02]}  Bg7 {[%clk 0:09:46]} 4. Bg2 {[%clk 0:10:04]}  Nf6 {[%clk 0:09:48]} 5. c4 {[%clk 0:10:03]}  c6 {[%clk 0:09:46]} 6. cxd5 {[%clk 0:10:03]}  cxd5 {[%clk 0:09:48]} 7. Nc3 {[%clk 0:10:04]}  O-O {[%clk 0:09:36]} 8. Ne5 {[%clk 0:10:03]}  Bf5 {[%clk 0:09:37]} 9. O-O {[%clk 0:10:01]}  Ne4 {[%clk 0:09:36]} 10. Bf4 {[%clk 0:09:50]}  Nxc3 {[%clk 0:09:26]} 11. bxc3 {[%clk 0:09:51]}  Nc6 {[%clk 0:09:27]} 12. Nxc6 {[%clk 0:09:39]}  bxc6 {[%clk 0:09:29]} 13. Qb3 {[%clk 0:09:26]}  Qb6 {[%clk 0:09:03]} 14. Rfc1 {[%clk 0:07:22]}  Rfe8 {[%clk 0:08:47]} 15. e3 {[%clk 0:07:19]}  Bd3 {[%clk 0:08:23]} 16. Qd1 {[%clk 0:06:57]}  Qa6 {[%clk 0:06:23]} 17. Bf1 {[%clk 0:06:57]}  Bxf1 {[%clk 0:06:22]} 18. Qxf1 {[%clk 0:06:59]}  Qxf1+ {[%clk 0:06:08]} 19. Kxf1 {[%clk 0:07:01]}  e5 {[%clk 0:06:08]} 20. dxe5 {[%clk 0:06:56]}  Bxe5 {[%clk 0:06:09]} 21. Bxe5 {[%clk 0:06:52]}  Rxe5 {[%clk 0:06:11]} 22. Rab1 {[%clk 0:06:42]}  Re4 {[%clk 0:05:53]} 23. Rb7 {[%clk 0:06:34]}  Ra4 {[%clk 0:05:47]} 24. Rc2 {[%clk 0:06:35]}  Re8 {[%clk 0:05:33]} 25. Rc7 {[%clk 0:06:24]}  Re6 {[%clk 0:04:47]} 26. Ke2 {[%clk 0:06:12]}  g5 {[%clk 0:03:23]} 27. h3 {[%clk 0:05:51]}  h5 {[%clk 0:02:47]} 28. Kd3 {[%clk 0:05:48]}  Kg7 {[%clk 0:02:28]} 29. Rb2 {[%clk 0:05:44]}  g4 {[%clk 0:02:11]} 30. hxg4 {[%clk 0:05:25]}  hxg4 {[%clk 0:02:12]} 31. Rb4 {[%clk 0:04:52]}  Rxb4 {[%clk 0:00:22]} 32. cxb4 {[%clk 0:04:54]}  Rf6 {[%clk 0:00:22]} 33. Ke2 {[%clk 0:04:15]}  Re6 {[%clk 0:00:11]} 34. Rxa7 {[%clk 0:04:04]}  d4 {[%clk 0:00:12]} 35. a4 {[%clk 0:03:34]}  dxe3 {[%clk 0:00:11]} 36. fxe3 {[%clk 0:03:36]}  Rh6 {[%clk 0:00:09]} 37. a5 {[%clk 0:02:34]}  Rh3 {[%clk 0:00:05]} 38. Rc7 {[%clk 0:01:57]}  Rxg3 {[%clk 0:00:06]} 39. Rxc6 {[%clk 0:01:54]}  Rg2+ {[%clk 0:00:08]} 40. Kf1 {[%clk 0:01:51]}  Rb2 {[%clk 0:00:08]} 41. Rb6 {[%clk 0:01:51]}  f6 {[%clk 0:00:05]} 42. a6 {[%clk 0:01:51]}  Kg6 {[%clk 0:00:06]} 43. b5 {[%clk 0:01:52]}  Ra2 {[%clk 0:00:06]} 44. Rb8 {[%clk 0:01:11]}  Kf5 {[%clk 0:00:05]} 45. b6 {[%clk 0:00:53]}  Rxa6 {[%clk 0:00:05]} 46. b7 {[%clk 0:00:53]}  Rb6 {[%clk 0:00:06]} 47. Kg2 {[%clk 0:00:53]}  Rb2+ {[%clk 0:00:03]} 48. Kg3 {[%clk 0:00:53]}  Rb3 {[%clk 0:00:05]} 49. Kf2 {[%clk 0:00:34]}  Rb2+ {[%clk 0:00:06]} 50. Ke1 {[%clk 0:00:33]}  g3 {[%clk 0:00:04]} 51. Kf1 {[%clk 0:00:34]}  Rb1+ {[%clk 0:00:02]} 52. Kg2 {[%clk 0:00:34]}  Rb3 {[%clk 0:00:03]} 53. Kh3 {[%clk 0:00:31]}  Rb2 {[%clk 0:00:02]} 54. Kxg3 {[%clk 0:00:31]}  Rb3 {[%clk 0:00:04]} 55. Kf3 {[%clk 0:00:31]}  Rb1 {[%clk 0:00:04]} 56. e4+ {[%clk 0:00:31]} 1-0


[Site "Internet"]